bitfinex-derivatives/quotes_BNBF0:USTF0_20250330
["timestamp","ask_amount","ask_price","bid_price","bid_amount"]
[1743305012351,1.42342635,612.53,611.68,0.28426495]
[1743305012548,0.32651995,612.52,611.68,0.28426495]
[1743305012950,4.02662496,612.52,611.68,0.28426495]
[1743305013148,1.42342635,612.51,611.68,0.28426495]
[1743305013347,1.15085862,612.51,611.0,2.47085025]
[1743305013548,0.32653061,612.5,611.65,0.28442875]
[1743305014049,1.15085862,612.49,611.42,1.0]
[1743305014254,0.32654127,612.48,611.42,1.0]
[1743305014455,1.47739989,612.48,611.42,1.0]
[1743305014655,1.47739989,612.48,611.43,0.28438343]
[1743305015052,1.15085862,612.47,611.43,0.28438343]
[1743305015652,0.32654127,612.48,611.43,0.28438343]
[1743305015949,0.32655193,612.46,611.43,0.28438343]
[1743305016355,0.32655193,612.46,611.01,0.32732688]
[1743305016550,0.32655193,612.46,611.43,0.28443456]
[1743305016953,0.32655193,612.46,611.24,2.47085025]
[1743305017148,0.32655193,612.46,611.35,1.0]
[1743305017556,0.2844241,612.45,611.35,1.0]
[1743305017751,0.32656793,612.43,611.35,1.0]
[1743305031363,1.304,612.42,611.35,1.0]
[1743305031563,0.32657859,612.41,611.35,1.0]
[1743305042884,0.32657859,612.41,611.34,0.28440434]
[1743305043279,0.32657859,612.41,611.01,0.32732688]
[1743305043479,0.32657859,612.41,611.22,1.0]
[1743305043676,0.28448339,612.4,611.34,0.28448339]
[1743305043877,0.32659459,612.38,611.01,0.32732688]
[1743305044178,1.227,612.37,611.22,1.0]
[1743305044383,0.32660526,612.36,611.22,1.0]
[1743305044578,0.32660526,612.36,611.23,0.28445084]
[1743305046380,0.32660526,612.36,611.22,1.0]
[1743305046580,0.32660526,612.36,611.23,0.28445781]
[1743305047576,0.61106307,612.36,611.23,0.28445781]
[1743305049277,0.32660526,612.36,611.22,1.0]
[1743305049781,0.61106307,612.36,611.23,0.28445781]
[1743305050177,1.902,612.35,611.23,0.28445781]
[1743305050482,0.32661593,612.34,611.23,0.28445781]
[1743305052486,0.32661593,612.34,611.22,1.0]
[1743305052686,0.32661593,612.34,611.23,0.28446014]
[1743305055283,0.32661593,612.34,611.22,1.0]
[1743305055682,0.32661593,612.34,611.23,0.28446014]
[1743305058284,0.32661593,612.34,611.22,1.0]
[1743305058690,0.32661593,612.34,611.23,0.28446014]
[1743305061492,0.32661593,612.34,611.22,1.0]
[1743305062594,0.32661593,612.34,611.23,0.28446014]
[1743305064297,0.32661593,612.34,611.01,2.79817713]
[1743305064495,0.32661593,612.34,611.21,1.0]
[1743305064797,0.32661593,612.34,611.23,0.28448456]
[1743305065692,0.28450316,612.33,611.23,0.28448456]
[1743305066396,0.32663193,612.31,611.23,0.28448456]
[1743305067093,1.47482006,612.31,611.23,0.28448456]
[1743305067298,1.47482006,612.31,611.01,0.32732688]
[1743305067598,1.47482006,612.31,611.14,1.0]
[1743305067794,1.14818813,612.3,611.14,1.0]
[1743305067991,0.32664793,612.28,611.14,1.0]
[1743305068598,0.28451595,612.27,611.15,0.28451595]
[1743305069098,1.43270408,612.27,611.15,0.28451595]
[1743305069295,0.32666394,612.25,611.15,0.28451595]
[1743305069701,1.74474416,612.25,611.15,0.28451595]
[1743305069894,1.14818813,612.24,611.15,0.28451595]
[1743305070095,0.32667995,612.22,611.15,0.28451595]
[1743305070299,0.32667995,612.22,611.01,0.32732688]
[1743305070502,0.2845555,612.21,611.15,0.2845555]
[1743305070705,0.32669596,612.19,611.15,0.2845555]
[1743305070903,0.32669596,612.19,611.01,0.32732688]
[1743305071103,0.32669596,612.19,611.01,1.32732688]
[1743305071301,1.14818813,612.18,611.01,1.0]
[1743305071599,1.14818813,612.18,610.97,1.0]
[1743305071799,1.14818813,612.17,610.97,1.0]
[1743305072001,0.3267173,612.15,610.97,1.0]
[1743305072203,0.3267173,612.15,610.98,0.28458343]
[1743305072804,1.14818813,612.14,610.98,0.28458343]
[1743305073001,0.32673332,612.12,610.98,0.28458343]
[1743305073206,1.14818813,612.11,610.98,0.28458343]
[1743305073402,0.32674933,612.09,610.61,2.47085025]
[1743305073603,0.32674933,612.09,610.98,0.28462882]
[1743305073809,2.06,612.08,610.98,0.28462882]
[1743305074003,0.32676001,612.07,610.62,0.32753594]
[1743305074204,0.32676001,612.07,610.95,1.0]
[1743305074405,1.74484023,612.07,610.95,1.0]
[1743305074904,4.72494743,612.07,610.96,0.28459739]
[1743305075104,1.41808022,612.06,610.96,0.28459739]
[1743305075305,0.32677068,612.05,610.96,0.28459739]
[1743305076307,0.32677068,612.05,610.7,2.47085025]
[1743305076505,0.32677068,612.05,610.95,1.0]
[1743305077703,0.28459856,612.04,610.96,0.28459856]
[1743305078007,0.32678136,612.03,610.96,0.28459856]
[1743305079306,0.32678136,612.03,610.62,0.32753594]
[1743305079604,0.32678136,612.03,610.96,0.28464744]
[1743305080011,0.32678136,612.03,610.62,0.32753594]
[1743305080210,0.32678136,612.03,610.9,1.0]
[1743305080710,0.28469052,612.02,610.9,1.0]
[1743305081703,0.32679738,612.0,610.9,1.0]
[1743305081907,0.32679738,612.0,610.71,1.0]
[1743305082104,1.0,611.97,610.71,1.0]
[1743305082308,0.32682408,611.95,610.71,1.0]
[1743305083306,1.62268463,611.84,610.71,1.0]
[1743305083510,1.0,611.63,609.68,2.47085025]
[1743305083714,1.0,611.63,610.55,0.28478022]
[1743305083913,0.32700577,611.61,609.68,2.47085025]
[1743305084114,0.32700577,611.61,610.35,1.0]
[1743305084313,1.0,611.58,610.4,0.28488046]
[1743305084714,0.3270325,611.56,610.4,0.28488046]
[1743305084910,0.3270325,611.56,610.43,1.0]
[1743305085312,1.14818813,611.55,610.43,1.0]
[1743305085513,0.32704855,611.53,610.43,1.0]
[1743305085710,1.14818813,611.52,610.43,1.0]
[1743305086017,0.32706459,611.5,610.43,1.0]
[1743305086218,1.41709646,611.49,610.43,1.0]
[1743305086413,0.32708064,611.47,610.43,1.0]
[1743305087510,1.14818813,611.46,610.43,1.0]
[1743305087714,0.32709134,611.45,610.43,1.0]
[1743305088119,1.14818813,611.44,610.43,1.0]
[1743305088313,0.32710203,611.43,610.43,1.0]
[1743305088917,1.14818813,611.42,610.43,1.0]
[1743305089113,0.32711273,611.41,610.43,1.0]
[1743305089418,1.47530086,611.41,610.43,1.0]
[1743305089917,1.14818813,611.4,610.43,1.0]
[1743305090122,0.32712344,611.39,610.43,1.0]
[1743305090619,1.14818813,611.38,610.43,1.0]
[1743305090823,0.32713414,611.37,610.43,1.0]
[1743305091322,1.14818813,611.36,610.43,1.0]
[1743305091722,1.14818813,611.35,610.43,1.0]
[1743305092525,1.14818813,611.34,610.43,1.0]
[1743305092824,1.14818813,611.33,610.43,1.0]
[1743305093221,1.14818813,611.32,610.43,1.0]
[1743305093721,0.32716624,611.31,610.43,1.0]
[1743305093918,1.40359178,611.3,610.43,1.0]
[1743305094123,1.40359178,611.29,610.43,1.0]
[1743305094322,1.40359178,611.28,610.43,1.0]
[1743305094823,2.98537451,611.27,610.43,1.0]
[1743305095017,4.38896629,611.27,610.43,1.0]
[1743305095222,1.40359178,611.26,610.43,1.0]
[1743305095520,4.38896629,611.26,610.43,1.0]
[1743305095726,4.38896629,611.25,610.43,1.0]
[1743305095918,2.98537451,611.25,610.43,1.0]
[1743305096320,2.98537451,611.24,610.43,1.0]
[1743305096924,2.98537451,611.23,610.43,1.0]
[1743305097326,1.14818813,611.22,610.43,1.0]
[1743305097825,0.3271716,611.3,610.43,1.0]
[1743305098428,1.13517227,611.29,610.43,1.0]
[1743305098820,1.13517227,611.28,610.43,1.0]
[1743305099322,1.138,611.27,610.43,1.0]
[1743305106125,1.138,611.27,610.56,1.0]
[1743305122849,1.256,611.26,610.56,1.0]
[1743305126949,1.631,611.25,610.56,1.0]
[1743305145667,1.879,611.24,610.56,1.0]
[1743305148267,1.879,611.24,610.55,0.28485598]
[1743305148570,1.879,611.24,610.39,1.0]
[1743305148769,1.879,611.24,610.55,0.28493178]
[1743305149170,1.879,611.24,610.06,2.47085025]
[1743305149372,1.879,611.24,610.39,1.0]
[1743305149871,1.879,611.24,610.4,0.28489096]
[1743305150669,1.648,611.23,610.4,0.28489096]
[1743305151374,1.648,611.23,610.07,0.32783123]
[1743305151573,1.648,611.23,610.39,1.0]
[1743305151868,1.648,611.23,610.4,0.28492944]
[1743305154375,1.648,611.23,610.07,0.32783123]
[1743305154576,1.648,611.23,610.37,1.0]
[1743305161478,1.648,611.23,610.5,1.0]
[1743305173393,1.926,611.22,610.5,1.0]
[1743305183192,1.093,611.21,610.5,1.0]
[1743305191105,1.48,611.2,610.5,1.0]
[1743305193304,1.48,611.2,610.49,0.28486297]
[1743305196504,1.48,611.2,610.07,0.32783123]
[1743305196700,1.48,611.2,610.49,0.28495627]
[1743305196904,1.48,611.2,610.07,0.32783123]
[1743305197107,1.48,611.2,610.29,1.0]
[1743305197807,1.48,611.2,610.3,0.28493061]
[1743305199401,1.48,611.2,610.07,0.32783123]
[1743305199600,1.48,611.2,610.27,1.0]
[1743305200903,1.48,611.2,610.28,0.28493294]
[1743305201408,0.32723048,611.19,610.28,0.28493294]
[1743305201801,1.58923048,611.19,610.28,0.28493294]
[1743305202201,3.014658,611.19,610.28,0.28493294]
[1743305203004,5.97226827,611.19,610.28,0.28493294]
[1743305203209,1.42542752,611.18,609.69,2.47085025]
[1743305203403,4.54684075,611.19,609.69,2.47085025]
[1743305203404,0.32724654,611.16,610.02,1.0]
[1743305204410,1.75267406,611.16,610.02,1.0]
[1743305205616,0.28503213,611.15,610.02,1.0]
[1743305205918,0.32725725,611.14,610.02,1.0]
[1743305211827,0.28505197,611.13,610.02,1.0]
[1743305212226,0.32727332,611.11,609.91,0.28505197]
[1743305213426,1.13781366,611.1,609.91,0.28505197]
[1743305213726,0.32728938,611.08,609.91,0.28505197]
[1743305214622,4.91345085,611.08,609.91,0.28505197]
[1743305214823,6.37915285,611.07,609.91,0.28505197]
[1743305215025,0.32730545,611.05,609.91,0.28505197]
[1743305215426,1.23090682,611.05,609.91,0.28505197]
[1743305215625,5.56864464,611.05,609.91,0.28505197]
[1743305215824,0.90360137,611.04,609.91,0.28505197]
[1743305216025,0.32732152,611.02,609.91,0.28505197]
[1743305216327,1.41636927,611.01,609.91,0.28505197]
[1743305216622,0.32733759,610.99,609.91,0.28505197]
[1743305217023,1.13781366,610.98,609.91,0.28505197]
[1743305217327,0.32735367,610.96,609.7,0.32803017]
[1743305217723,0.32735367,610.96,609.91,0.28513722]
[1743305218121,0.32735367,610.96,609.7,0.32803017]
[1743305218322,1.13781366,610.95,609.81,1.0]
[1743305218525,0.32736438,610.94,609.81,1.0]
[1743305218723,1.46517804,610.94,609.81,1.0]
[1743305218921,2.36877941,610.94,609.81,1.0]
[1743305219125,6.05133951,610.94,609.81,1.0]
[1743305219325,1.13781366,610.93,609.82,0.28512905]
[1743305219526,0.3273751,610.92,609.82,0.28512905]
[1743305219922,1.13781366,610.91,609.82,0.28512905]
[1743305220122,0.32738582,610.9,609.82,0.28512905]
[1743305220327,0.32738582,610.9,609.7,0.32803017]
[1743305220522,1.46519948,610.9,609.81,1.0]
[1743305220722,1.62666838,611.06,609.81,1.0]
[1743305220723,1.75035024,610.89,609.82,0.2851454]
[1743305220923,0.32739654,610.88,609.82,0.2851454]
[1743305221128,1.74376581,610.88,609.82,0.2851454]
[1743305221523,1.13781366,610.87,609.82,0.2851454]
[1743305221727,0.32740726,610.86,609.82,0.2851454]
[1743305222321,1.46522092,610.86,609.82,0.2851454]
[1743305222725,1.13781366,610.85,609.82,0.2851454]
[1743305222924,0.32741798,610.84,609.82,0.2851454]
[1743305223527,1.13781366,610.83,609.82,0.2851454]
[1743305223728,0.3274287,610.82,609.82,0.2851454]
[1743305224030,0.3274287,610.82,609.84,1.0]
[1743305227930,1.8924287,610.82,609.84,1.0]
[1743305228625,3.03024236,610.82,609.84,1.0]
[1743305228826,1.40961367,610.81,609.84,1.0]
[1743305229230,1.13781366,610.8,609.84,1.0]
[1743305229626,1.13781366,610.79,609.84,1.0]
[1743305230633,1.13781366,610.78,609.84,1.0]
[1743305231228,1.13781366,610.77,609.84,1.0]
[1743305232030,1.13781366,610.8,609.84,1.0]
[1743305232428,1.13781366,610.79,609.84,1.0]
[1743305233033,1.13781366,610.78,609.84,1.0]
[1743305234033,1.13781366,610.8,609.84,1.0]
[1743305234333,1.13781366,610.79,609.84,1.0]
[1743305234735,1.13781366,610.79,610.04,1.0]
[1743305235132,1.8924287,610.82,610.04,1.0]
[1743305251749,2.9144287,610.82,610.04,1.0]
[1743305278978,2.587,610.82,610.2,1.0]
[1743305286779,2.587,610.82,610.16,0.28501812]
[1743305289176,2.587,610.82,610.16,1.28501812]
[1743305289379,2.587,610.82,610.16,1.0]
[1743305289882,2.587,610.82,610.16,1.28501579]
[1743305292382,2.587,610.82,610.16,1.0]
[1743305292882,2.587,610.82,610.16,1.28501579]
[1743305295489,2.587,610.82,610.16,1.0]
[1743305296892,2.587,610.82,610.16,1.28501345]
[1743305298494,2.587,610.82,610.16,1.0]
[1743305298696,2.587,610.82,610.16,1.28499245]
[1743305301390,2.587,610.82,610.16,1.0]
[1743305301796,2.587,610.82,610.16,1.28499128]
[1743305304398,2.587,610.82,610.16,1.0]
[1743305304796,2.587,610.82,610.16,1.28498078]
[1743305307500,2.587,610.82,610.16,1.0]
[1743305307702,2.587,610.82,610.16,1.28499245]
[1743305310507,2.587,610.82,610.16,1.0]
[1743305311809,2.587,610.82,610.16,1.28501345]
[1743305313607,2.587,610.82,610.16,1.0]
[1743305313805,2.587,610.82,610.16,1.28501579]
[1743305316407,2.587,610.82,610.16,1.0]
[1743305316805,2.587,610.82,610.16,1.28501579]
[1743305322410,2.587,610.82,610.16,1.0]
[1743305322706,2.587,610.82,610.16,1.28501345]
[1743305325411,2.587,610.82,610.16,1.0]
[1743305325913,2.587,610.82,610.16,1.28501345]
[1743305331419,2.587,610.82,610.16,1.0]
[1743305331821,2.587,610.82,610.16,1.28501812]
[1743305334435,2.587,610.82,610.16,1.0]
[1743305334829,2.587,610.82,610.16,1.28501812]
[1743305335731,2.587,610.82,610.16,0.28501812]
[1743305340432,2.587,610.82,609.7,0.32803017]
[1743305340635,2.587,610.82,610.11,1.0]
[1743305340834,2.587,610.82,610.16,0.2850905]
[1743305343435,2.587,610.82,609.7,0.32803017]
[1743305343737,2.587,610.82,610.16,0.2850905]
[1743305344132,2.587,610.82,609.7,0.32803017]
[1743305344338,2.587,610.82,610.11,1.0]
[1743305345440,2.587,610.82,610.12,0.28504263]
[1743305349540,2.587,610.82,609.89,2.47085025]
[1743305349740,2.587,610.82,610.11,1.0]
[1743305349940,2.587,610.82,610.12,0.28506832]
[1743305352439,2.587,610.82,609.79,2.47085025]
[1743305352645,2.587,610.82,610.09,1.0]
[1743305352844,2.587,610.82,610.12,0.28510335]
[1743305353044,2.587,610.82,609.8,2.47085025]
[1743305353241,2.587,610.82,610.03,1.0]
[1743305353846,2.587,610.82,610.04,0.28507532]
[1743305355442,2.587,610.82,609.7,0.32803017]
[1743305355650,2.587,610.82,610.03,1.0]
[1743305355948,2.587,610.82,610.04,0.28511386]
[1743305358549,2.587,610.82,609.7,0.32803017]
[1743305358853,2.587,610.82,610.04,0.28512321]
[1743305359156,2.587,610.82,609.7,0.32803017]
[1743305359352,2.587,610.82,609.97,1.0]
[1743305359756,2.587,610.82,609.98,0.28509167]
[1743305361557,2.587,610.82,609.7,0.32803017]
[1743305361859,2.587,610.82,609.98,0.28512321]
[1743305362060,2.587,610.82,609.7,0.32803017]
[1743305362260,2.587,610.82,609.97,1.0]
[1743305362862,2.587,610.82,609.98,0.28509167]
[1743305364463,2.587,610.82,609.7,0.32803017]
[1743305364658,2.587,610.82,609.98,0.28512321]
[1743305365065,2.587,610.82,609.7,0.32803017]
[1743305365364,2.587,610.82,609.97,1.0]
[1743305368766,2.9144287,610.82,609.97,1.0]
[1743305379775,0.32743406,610.81,609.97,1.0]
[1743305382480,1.041,610.8,609.97,1.0]
[1743305383875,0.32744478,610.79,609.97,1.0]
[1743305384077,1.97144478,610.79,609.97,1.0]
[1743305385177,1.97144478,610.79,609.96,0.28513605]
[1743305385376,1.97144478,610.79,609.7,0.32803017]
[1743305385577,1.97144478,610.79,609.77,1.0]
[1743305385782,1.97144478,610.79,609.95,0.28517811]
[1743305385983,1.97144478,610.79,609.7,0.32803017]
[1743305386277,1.97144478,610.79,609.77,1.0]
[1743305387374,1.97144478,610.79,609.78,0.2851676]
[1743305387575,3.39045894,610.79,609.78,0.2851676]
[1743305387784,3.39045894,610.79,609.78,1.2851676]
[1743305388479,1.13249984,610.78,609.78,1.0]
[1743305388684,0.3274555,610.77,609.78,1.0]
[1743305388878,0.3274555,610.77,609.78,1.28516643]
[1743305391482,0.3274555,610.77,609.78,1.0]
[1743305391878,0.3274555,610.77,609.78,1.2851676]
[1743305394483,0.3274555,610.77,609.78,1.0]
[1743305394680,0.3274555,610.77,609.78,1.28517461]
[1743305397481,0.3274555,610.77,609.78,1.0]
[1743305397884,0.3274555,610.77,609.78,1.28517461]
[1743305400380,0.3274555,610.77,609.78,1.0]
[1743305400781,0.3274555,610.77,609.78,1.28517461]
[1743305402185,0.3274555,610.77,609.78,1.0]
[1743305402586,0.3274555,610.77,609.78,1.28517461]
[1743305403489,0.3274555,610.77,609.78,1.0]
[1743305403887,0.3274555,610.77,609.78,1.28517344]
[1743305404082,0.3274555,610.77,609.78,0.28517344]
[1743305406488,0.3274555,610.77,609.7,0.32803017]
[1743305406686,0.3274555,610.77,609.75,1.0]
[1743305406882,0.3274555,610.77,609.78,0.28518279]
[1743305409090,1.96,610.76,609.78,0.28518279]
[1743305409291,0.32746623,610.75,609.78,0.28518279]
[1743305409490,0.32746623,610.75,609.7,0.32803017]
[1743305409691,0.32746623,610.75,609.75,1.0]
[1743305409990,0.32746623,610.75,609.78,0.28518629]
[1743305410290,1.74693763,610.75,609.78,0.28518629]
[1743305410691,2.88165256,610.75,609.78,0.28518629]
[1743305412490,1.284,610.74,609.7,0.32803017]
[1743305412793,0.32747695,610.73,609.78,0.28518746]
[1743305412986,0.32747695,610.73,609.7,0.32803017]
[1743305413189,0.32747695,610.73,609.75,1.0]
[1743305414286,0.32747695,610.73,609.76,0.28518279]
[1743305415491,0.32747695,610.73,609.75,1.0]
[1743305415891,0.32747695,610.73,609.76,0.28518863]
[1743305417088,0.32747695,610.73,609.77,1.0]
[1743305425097,1.75191528,610.73,609.77,1.0]
[1743305425998,0.32747695,610.73,609.77,1.0]
[1743305426499,1.183,610.72,609.77,1.0]
[1743305426793,0.32748767,610.71,609.77,1.0]
[1743305432601,1.534,610.7,609.77,1.0]
[1743305438708,1.13249984,610.69,609.77,1.0]
[1743305439508,1.534,610.7,609.77,1.0]
[1743305441403,0.3274984,610.69,609.77,1.0]
[1743305447116,1.13897947,610.68,609.77,1.0]
[1743305447614,1.13897947,610.67,609.77,1.0]
[1743305448318,1.13897947,610.66,609.77,1.0]
[1743305448813,1.13897947,610.65,609.77,1.0]
[1743305449519,1.13897947,610.64,609.77,1.0]
[1743305449920,1.13897947,610.67,609.77,1.0]
[1743305450820,1.13897947,610.66,609.77,1.0]
[1743305451714,1.13897947,610.67,609.77,1.0]
[1743305452215,1.9894984,610.69,609.77,1.0]
[1743305452817,3.1285085,610.69,609.77,1.0]
[1743305453920,1.9894984,610.69,609.77,1.0]
[1743305457022,3.12760182,610.69,609.77,1.0]
[1743305457418,1.42640987,610.68,609.77,1.0]
[1743305457624,0.32750912,610.67,609.76,0.28515591]
[1743305457824,1.46561254,610.67,609.76,0.28515591]
[1743305458323,1.42640987,610.66,609.76,0.28515591]
[1743305458624,0.32752521,610.64,609.76,0.28515591]
[1743305459026,1.75393508,610.64,609.76,0.28515591]
[1743305459324,1.13810342,610.63,609.76,0.28515591]
[1743305459625,0.32753594,610.62,609.76,0.28515591]
[1743305459925,1.46563936,610.62,608.96,2.47085025]
[1743305460220,1.46563936,610.62,609.53,0.28533712]
[1743305460419,2.56451329,610.61,609.53,0.28533712]
[1743305460619,1.42640987,610.6,608.96,2.47085025]
[1743305460919,1.42417882,610.59,609.33,1.0]
[1743305461120,0.32756276,610.57,609.33,1.0]
[1743305461318,1.75174158,610.57,609.33,1.0]
[1743305461522,1.13810342,610.56,609.33,1.0]
[1743305461825,0.32757886,610.54,609.34,0.28534413]
[1743305462122,1.42417882,610.53,609.34,0.28534413]
[1743305462323,0.32759496,610.51,609.34,1.28534413]
[1743305463221,1.13810342,610.5,609.34,1.28534413]
[1743305463425,0.32760569,610.49,609.34,1.0]
[1743305463828,0.61294866,610.49,609.34,1.28534297]
[1743305464228,3.57346825,610.49,609.34,1.28534297]
[1743305464530,2.91025323,610.48,609.34,1.28534297]
[1743305464727,0.32761642,610.47,609.34,1.28534297]
[1743305465228,1.46571984,610.47,609.34,1.28534297]
[1743305466429,1.46571984,610.47,609.34,1.0]
[1743305466725,0.28534647,610.46,609.34,1.28534647]
[1743305466929,0.32762716,610.45,609.34,1.28534647]
[1743305467830,0.32762716,610.45,609.34,0.28534647]
[1743305469030,0.32762716,610.45,609.34,1.28534647]
[1743305469527,0.32762716,610.45,609.34,1.0]
[1743305469932,0.32762716,610.45,609.34,1.285357]
[1743305471028,0.28535583,610.44,609.34,1.285357]
[1743305471230,0.32763789,610.43,609.34,1.285357]
[1743305472632,0.32763789,610.43,609.34,1.0]
[1743305472936,0.28535934,610.42,609.34,1.28535934]
[1743305473133,0.32764862,610.41,609.34,1.28535934]
[1743305475538,0.32764862,610.41,609.34,1.0]
[1743305475935,0.28536168,610.4,609.34,1.28536168]
[1743305476236,0.32765936,610.39,609.34,1.28536168]
[1743305476446,0.32765936,610.39,609.34,0.28536168]
[1743305478040,1.46576278,610.39,609.34,0.28536168]
[1743305478446,2.92210342,610.38,609.34,0.28536168]
[1743305478650,0.3276701,610.37,609.34,0.28536168]
[1743305478941,2.88161125,610.37,609.34,0.28536168]
[1743305479144,1.491,610.36,609.34,0.28536168]
[1743305479344,0.32768083,610.35,609.34,0.28536168]
[1743305480147,1.74221492,610.35,609.34,0.28536168]
[1743305480341,2.88031834,610.35,609.34,0.28536168]
[1743305480846,1.46578425,610.35,609.34,0.28536168]
[1743305481347,1.46578425,610.35,609.34,1.28536168]
[1743305483646,0.32768083,610.35,609.34,1.28536168]
[1743305484655,0.32768083,610.35,609.34,1.0]
[1743305484844,0.32768083,610.35,609.34,1.28535934]
[1743305487450,0.32768083,610.35,609.34,1.0]
[1743305487751,0.32768083,610.35,609.34,1.28535934]
[1743305490446,0.32768083,610.35,609.34,1.0]
[1743305490849,0.32768083,610.35,609.34,1.28535934]
[1743305493551,0.32768083,610.35,608.97,0.3284234]
[1743305493746,0.32768083,610.35,609.34,0.28536987]
[1743305494153,0.32768083,610.35,608.97,0.3284234]
[1743305494354,0.32768083,610.35,609.33,1.0]
[1743305495149,1.119,610.34,609.33,1.0]
[1743305495355,0.32769157,610.33,609.34,0.28537104]
[1743305496357,0.32769157,610.33,608.97,0.3284234]
[1743305496557,0.32769157,610.33,609.33,1.0]
[1743305496759,0.32769157,610.33,609.34,0.28541668]
[1743305502759,1.13810342,610.32,608.97,0.3284234]
[1743305502965,1.13810342,610.32,609.1,1.0]
[1743305503265,0.32770768,610.3,609.1,1.0]
[1743305503963,0.32770768,610.3,609.11,0.28545766]
[1743305504259,1.13810342,610.29,609.11,0.28545766]
[1743305504459,0.32772379,610.27,609.11,0.28545766]
[1743305504964,1.13810342,610.26,609.11,0.28545766]
[1743305505164,0.3277399,610.24,609.11,0.28545766]
[1743305505465,0.3277399,610.24,608.97,0.3284234]
[1743305505662,0.3277399,610.24,609.1,1.0]
[1743305505860,2.49059269,610.23,609.11,0.28548927]
[1743305506064,0.32775601,610.21,609.11,0.28548927]
[1743305506966,1.46585943,610.21,609.11,0.28548927]
[1743305507665,0.32775601,610.21,609.11,0.28548927]
[1743305508468,4.00128012,610.21,608.97,0.3284234]
[1743305508668,1.41356788,610.2,609.1,1.0]
[1743305508863,0.32777213,610.18,609.11,0.28549395]
[1743305511462,0.32777213,610.18,608.97,0.3284234]
[1743305511664,0.32777213,610.18,609.08,1.0]
[1743305511870,0.2854963,610.17,609.11,0.2854963]
[1743305512067,0.2854963,610.17,609.12,1.0]
[1743305512263,0.32778287,610.16,609.12,1.0]
[1743305515071,0.28547288,610.15,609.12,1.0]
[1743305515270,0.32779362,610.14,609.12,1.0]
[1743305516366,1.154,610.13,609.12,1.0]
[1743305516570,0.32780436,610.12,609.12,1.0]
[1743305523868,0.32780436,610.12,609.31,1.0]
[1743305524075,0.32780436,610.12,609.44,1.0]
[1743305527772,1.154,610.13,609.44,1.0]
[1743305529870,1.154,610.13,609.58,1.0]
[1743305531078,1.324,610.12,609.58,1.0]
[1743305544201,1.154,610.13,609.58,1.0]
[1743305544402,3.67878034,610.8,609.58,1.0]
[1743305544596,0.32745014,610.78,609.58,1.0]
[1743305547109,0.99,610.77,609.58,1.0]
[1743305547308,0.32746086,610.76,609.58,1.0]
[1743305551508,1.13810342,610.75,609.58,1.0]
[1743305551706,0.32747159,610.74,609.58,1.0]
[1743305552410,1.13810342,610.73,609.58,1.0]
[1743305552605,0.32748231,610.72,609.58,1.0]
[1743305553007,1.13810342,610.71,609.58,1.0]
[1743305553210,0.32749304,610.7,609.58,1.0]
[1743305553613,1.13810342,610.69,609.58,1.0]
[1743305553806,0.32750376,610.68,609.58,1.0]
[1743305554411,1.13810342,610.67,609.58,1.0]
[1743305554609,0.32751449,610.66,609.58,1.0]
[1743305555214,1.13810342,610.65,609.58,1.0]
[1743305555511,1.46562863,610.64,609.58,1.0]
[1743305556015,2.55052116,610.63,609.58,1.0]
[1743305556212,1.41241774,610.62,609.58,1.0]
[1743305556411,2.55052116,610.61,609.58,1.0]
[1743305556609,1.41241774,610.6,609.58,1.0]
[1743305556815,1.73996977,610.59,609.58,1.0]
[1743305557117,0.32756276,610.57,609.58,1.0]
[1743305557315,1.73822053,610.57,609.58,1.0]
[1743305557514,0.32756276,610.57,609.58,1.0]
[1743305557716,1.41065777,610.56,609.58,1.0]
[1743305557918,1.73823126,610.55,609.58,1.0]
[1743305558119,1.73823663,610.54,609.58,1.0]
[1743305558412,1.41065777,610.53,609.57,0.28528799]
[1743305558615,1.73824736,610.52,609.57,0.28528799]
[1743305558816,1.73825273,610.51,609.57,0.28528799]